Cogmind - Beta 17.1 @@@ ROGUE MODE // 2026.08.22 @ 20:43:29 Player: cptwinky Result: Destroyed by S-43 Plague with Heavy Machine Gun Performance ------------- Evolutions (9) 4500 Regions Visited (19) 3800 Robots Destroyed (337) 1685 Value Destroyed (14796) 14796 Prototype IDs (39) 780 Alien Tech Used (0) 0 Bonus (30063) 30063 TOTAL SCORE: 55624 Bonus ------- Triggered High Security 500 High Alert Combat Kills 8860 Follower Combat Kills 7756 Prayed to X0-1V1 5000 Major X0-1V1 Interference 8950 Scanned by Researcher 500 Friendly Fire -1503 Cogmind --------- Core Integrity 0/1700 Matter 569/900 Energy 999/1000 System Corruption 2% Temperature Cool (0) Movement Core (50) Location -1/Command Parts ------- > --- POWER (3) -------- (None) > --- PROPULSION (6) --- Biometal Medium Treads Biometal Medium Treads Advanced Heavy Siege Treads Impulse Thruster Cooled Q-thruster > --- UTILITY (12) ----- Experimental Target Analyzer Experimental Target Analyzer Improved Core Shielding X0-1V1's Piety Tracker > --- WEAPON (4) ------- (None) > --- INVENTORY (5) ---- Matter Compressor (250) Improved Sensor Array Improved Transmission Jammer Long-range Tractor Beam Enhanced Nova Cannon Peak State ------------ > --- POWER ------------ Reinforced Fission Core Quantum Reactor Quantum Reactor > --- PROPULSION ------- Heavy Treads Biometal Heavy Treads Advanced Heavy Siege Treads > --- UTILITY ---------- Experimental Heat Sink Improved Cooling System High-capacity Storage Unit Advanced Signal Interpreter Improved Transmission Jammer Wyrmplate Advanced Shield Generator Advanced System Restoration Module X0-1V1's Piety Tracker > --- WEAPON ----------- KE Penetrator KE Penetrator KE Penetrator Railgun Railgun > --- INVENTORY -------- Advanced Heavy Treads Biometal Heavy Treads Advanced Heavy Siege Treads Advanced Cooling System Matter Compressor Improved Sensor Array Improved Transmission Jammer Long-range Tractor Beam Matter Neutralizer Micro-nuke Launcher Fusion Bomb Launcher Containment Facilitator Improved Datajack CR-A16's Pointy Stick [Rating: 215] Favorites ----------- Power Cooled Ion Engine Engine Cooled Ion Engine Power Core Light Nuclear Core Reactor Quantum Reactor Propulsion Light Treads Treads Light Treads Leg Heavy Shield Leg Wheel Armored Wheel Flight Unit Impulse Thruster Utility X0-1V1's Piety Tracker Device X0-1V1's Piety Tracker Storage High-capacity Storage Unit Processor Advanced Signal Interpreter Hackware Hacking Suite Protection Medium Reactive Plating Weapon Compact Ion Cannon Energy Gun Beam Rifle Energy Cannon Compact Ion Cannon Ballistic Gun KE Penetrator Ballistic Cannon Assault Cannon Launcher Rocket Launcher Special Weapon Mining Laser Impact Weapon Power Maul Slashing Weapon Katana Piercing Weapon CR-A16's Pointy Stick Special Melee Weapon Improved Datajack Build | -11 -10 -10 -9 -9 -8 -8 -8 -8 -6 -6 -6 -6 -5 -5 -4 -3 -2 -1 -1 ------- Run | Yrd Mat Min Mat Min Mat Sto Rec Scr Fac Low Low Zio Pro Fac Fac Res Res Acc Com Slots Evolved 18 | . . . 2 . 2 . . . 4 . . . . 2 2 2 2 2 . Power 2 | . . . . . . . . . . . . . . 1 . . 1 . . Propulsion 4 | . . . 1 . . . . . 1 . . . . 1 . 1 . . . Utility 10 | . . . 1 . 1 . . . 2 . . . . . 2 1 1 2 . Weapon 2 | . . . . . 1 . . . 1 . . . . . . . . . . Parts Attached 188 | 6 9 4 32 2 . 15 4 7 18 2 . 4 1 20 8 6 11 38 1 Power 21 | 1 . . 6 1 . 2 . . 2 . . . . 3 2 . 1 3 . Engine 13 | 1 . . 6 1 . 1 . . 1 . . . . 3 . . . . . Core 5 | . . . . . . 1 . . 1 . . . . . 2 . . 1 . Reactor 3 | . . . . . . . . . . . . . . . . . 1 2 . Propulsion 53 | 2 . 2 10 . . 5 . 2 3 . . 1 . 6 1 2 5 13 1 Treads 42 | 2 . 1 9 . . 5 . . 3 . . 1 . 6 1 2 5 6 1 Leg 4 | . . . . . . . . . . . . . . . . . . 4 . Wheel 4 | . . 1 1 . . . . 2 . . . . . . . . . . . Hover . | . . . . . . . . . . . . . . . . . . . . Flight 3 | . . . . . . . . . . . . . . . . . . 3 . Utility 55 | 1 3 . 7 1 . 2 3 3 7 . . 1 . 8 3 2 4 10 . Device 31 | . 1 . 3 . . . . 2 4 . . . . 5 2 1 4 9 . Storage 7 | 1 2 . 2 . . . . . . . . 1 . 1 . . . . . Processor 2 | . . . . . . . . . 2 . . . . . . . . . . Hackware 1 | . . . . . . 1 . . . . . . . . . . . . . Protection 14 | . . . 2 1 . 1 3 1 1 . . . . 2 1 1 . 1 . Artifact . | . . . . . . . . . . . . . . . . . . . . Weapon 59 | 2 6 2 9 . . 6 1 2 6 2 . 2 1 3 2 2 1 12 . Energy Gun 2 | . . . 1 . . . . . . . . . . . 1 . . . . Energy Cannon 9 | . . 1 . . . 1 . . 3 . . . 1 1 . . . 2 . Ballistic Gun 26 | 2 2 1 3 . . 4 . . . 1 . 1 . 2 1 2 1 6 . Ballistic Cannon 8 | . 2 . 3 . . . 1 1 1 . . . . . . . . . . Launcher 7 | . 1 . 1 . . 1 . . 1 . . . . . . . . 3 . Special Weapon 2 | . 1 . . . . . . 1 . . . . . . . . . . . Impact Weapon 1 | . . . . . . . . . . 1 . . . . . . . . . Slashing Weapon 2 | . . . 1 . . . . . . . . . . . . . . 1 . Piercing Weapon 1 | . . . . . . . . . . . . 1 . . . . . . . Special Melee Weapon 1 | . . . . . . . . . 1 . . . . . . . . . . Unidentified Prototypes 11 | . 1 . 1 . . 2 . . 1 . . . . 1 . . . 5 . Corrupted Parts 4 | . . . . . . . . . . . . 4 . . . . . . . System Corruption 25 | . . . . . . . . . . . . 25 . . . . . . . Parts Lost 56 | . . 3 6 . . . . . . . . . . 9 1 . . 37 . Power 8 | . . . 2 . . . . . . . . . . 2 . . . 4 . Propulsion 16 | . . 2 2 . . . . . . . . . . 2 . . . 10 . Utility 16 | . . . 1 . . . . . . . . . . 4 . . . 11 . Weapon 16 | . . 1 1 . . . . . . . . . . 1 1 . . 12 . Highest Loss Streak 12 | . . 3 3 . . . . . . . . . . 7 1 . . 12 . To Critical Strikes 3 | . . . . . . . . . . . . . . . . . . 3 . Average Backups 16 | 2 8 9 13 19 20 19 18 18 18 18 19 19 19 17 17 17 17 11 5 Power 1 | . 1 1 1 1 1 . . . . 2 2 2 2 1 1 2 1 . . Propulsion 4 | . 2 2 3 5 6 6 5 6 5 4 4 4 4 2 4 3 2 1 . Utility 4 | . . 1 3 5 6 5 5 5 4 4 6 6 6 7 6 7 7 5 4 Weapon 5 | . 4 4 6 7 7 6 5 5 5 5 5 5 5 4 3 3 5 3 1 Tool/Special . | . . . . . . . . . . . . . . . . . . . . Unused Backups 28 | . 4 . 3 2 . 6 . 1 2 2 . . . 1 2 3 1 . 1 Power 2 | . . . 1 . . . . . . . . . . . . 1 . . . Propulsion 7 | . 2 . . . . 2 . . 1 . . . . . 1 . 1 . . Utility 13 | . . . 2 1 . 2 . 1 1 2 . . . 1 . 2 . . 1 Weapon 6 | . 2 . . 1 . 2 . . . . . . . . 1 . . . . Tool/Special . | . . . . . . . . . . . . . . . . . . . . Average Slot Usage (%) 93 | . 99 100 97 100 81 98 100 100 99 100 100 100 100 94 88 77 76 57 36 Engine 8 | . 14 14 10 11 9 12 9 9 8 6 6 6 6 7 7 4 4 1 . Core 2 | . . . . . . 3 9 9 3 . . . . 2 2 4 4 2 . Treads 24 | . 28 27 29 33 27 27 27 24 25 26 26 26 26 24 15 17 15 9 12 Device 15 | . 2 14 16 11 9 9 9 12 19 20 20 13 20 15 25 17 17 16 4 Storage 7 | . 14 14 11 11 9 9 9 9 6 6 6 12 6 5 5 4 4 2 . Processor 2 | . . . . . . . . . 1 6 6 6 6 5 5 4 4 2 8 Hackware 1 | . . . . . . 8 9 3 . . . . . . . . . . . Protection 6 | . 10 . 4 11 9 8 9 11 10 6 6 6 6 5 5 4 4 3 4 Energy Cannon 6 | . . 7 . . . . . . 11 20 20 15 20 14 2 . . . . Ballistic Gun 9 | . 14 6 12 21 18 20 15 2 . . . 6 5 7 16 15 16 10 . Ballistic Cannon 3 | . 12 14 5 . . . 2 14 8 . . . . . . . . . . Peak Build Rating 215 | 6 21 22 38 39 39 46 40 43 72 72 72 73 73 106 117 154 181 215 105 Average Rating 66 | 5 10 20 28 38 39 42 39 38 60 68 70 67 71 88 114 141 170 161 89 On Entrance 63 | . 6 21 22 37 39 39 40 40 32 69 72 70 73 73 105 116 154 181 89 Avg Prop Armor Cover (%) 31 | . . 11 16 . . . . 5 . . . . . . . . 5 44 44 Naked Turns 9 | . . . . . . . . . . . . . . . . . . 9 . Heaviest Build 211 | 13 22 22 58 60 60 68 70 80 101 96 93 100 96 112 113 170 189 211 3 Greatest Support 230 | 40 40 40 66 66 66 67 60 60 82 82 82 82 82 167 167 194 230 225 3 Greatest Overweight (x) 3 | . . 1 3 . . 1 1 3 1 1 1 1 1 1 . . 1 1 . Average Overweight (x) . | . . . . . . . 1 1 1 1 1 1 1 . . . . . . Largest Inventory Capacity 20 | 8 10 10 20 20 20 20 20 20 20 20 20 20 20 20 20 20 20 20 5 Average Capacity 18 | 7 9 10 15 20 20 20 20 20 20 20 20 20 20 20 20 20 20 16 5 Most Carried 20 | 5 10 10 20 20 20 20 20 20 20 20 20 20 20 20 20 20 20 20 5 Average Carried 17 | 2 8 9 13 19 20 19 19 19 19 19 20 19 19 19 19 19 19 12 4 Final Capacity 20 | 8 10 10 20 20 20 20 20 20 20 20 20 20 20 20 20 20 20 5 5 Final Carried 20 | 5 10 9 20 20 20 20 20 20 19 20 20 20 20 20 20 20 20 5 5 Class Distribution -------------------- 32% | Scavenger-Tank 23% | Mutant 17% | Scavenger-Skirmisher 13% | Commander-Mutant 11% | Scavenger-Mutant Dominant Class ---------------- Mutant | -10/Materials Mutant | -10/Mines Scavenger-Mutant | -9/Materials Mutant | -9/Mines Mutant | -8/Materials Mutant | -8/Storage Commander-Mutant | -8/Recycling Commander-Mutant | -8/Scraptown Scavenger-Tank | -6/Factory Scavenger-Skirmisher | -6/Lower Caves Scavenger-Skirmisher | -6/Lower Caves Scavenger-Tank | -6/Zion Scavenger-Skirmisher | -5/Proximity Caves Scavenger-Tank | -5/Factory Scavenger-Tank | -4/Factory Scavenger-Tank | -3/Research Scavenger-Skirmisher | -2/Research Scavenger-Tank | -1/Access Mutant | -1/Command Resources | -11 -10 -10 -9 -9 -8 -8 -8 -8 -6 -6 -6 -6 -5 -5 -4 -3 -2 -1 -1 ----------- Run | Yrd Mat Min Mat Min Mat Sto Rec Scr Fac Low Low Zio Pro Fac Fac Res Res Acc Com Matter Collected 12079 | 272 242 268 1851 297 . 824 142 313 485 301 32 33 597 788 395 170 927 4142 . Remotely 2487 | . . . . . . . . . . . . . . . . . 454 2033 . Salvage Created 12644 | 63 231 81 1731 244 20 1597 190 129 569 144 . . 136 803 269 113 673 5651 . Parts 529 | 3 23 1 129 11 2 77 9 8 24 1 . . 3 26 13 2 30 167 . Haulers Intercepted 16 | . 2 . 6 . . 6 . . 1 . . . . . . . 1 . . Recyclers Shooed 23 | 1 . . 6 . . 1 . . 2 . . . . 2 . . 5 6 . Parts Field Recycled . | . . . . . . . . . . . . . . . . . . . . Retrieved Matter . | . . . . . . . . . . . . . . . . . . . . Parts Self-Destructed 12 | . . . . . . . . . . 3 3 . 6 . . . . . . Prevented 2 | . . . . . . . . . . . . . 2 . . . . . . Parts Restored . | . . . . . . . . . . . . . . . . . . . . Kills | -11 -10 -10 -9 -9 -8 -8 -8 -8 -6 -6 -6 -6 -5 -5 -4 -3 -2 -1 -1 ------- Run | Yrd Mat Min Mat Min Mat Sto Rec Scr Fac Low Low Zio Pro Fac Fac Res Res Acc Com Combat Hostiles Destroyed 253 | . 10 4 54 6 . 22 3 2 9 3 . . 6 16 2 2 7 107 . Melee 2 | . . . . . . . . . . . . . . 1 . . . 1 . Guns 99 | . 1 . 17 3 . 22 3 . . . . . . 4 1 2 7 39 . Cannons 45 | . 7 4 13 . . . . 2 5 2 . . 2 3 1 . . 6 . AOE 105 | . 2 . 24 3 . . . . 4 1 . . 4 7 . . . 60 . Classes Destroyed 25 | 2 5 1 6 1 . 1 . 2 . . . . . 2 . . 1 4 . Worker 20 | . 2 . 7 1 . 2 . . 2 . . . . 4 . . . 2 . Builder 7 | . . . 3 . . . . . . . . . . 1 . . . 3 . Tunneler 6 | 1 . . 1 . . . . . 1 . . . . 1 . . . 2 . Hauler 16 | . 2 . 6 . . 6 . . 1 . . . . . . . 1 . . Recycler 15 | 1 . . 3 1 . 3 2 . . . . . . . 1 . 1 3 . Mechanic 10 | . . . 2 . . . . . 1 . . . . 1 . . . 6 . Operator 5 | . 1 . 2 . 1 1 . . . . . . . . . . . . . Watcher 2 | . . . 2 . . . . . . . . . . . . . . . . Swarmer 56 | . 6 . 24 3 . . . . . . . . 5 . . . . 18 . Saboteur 6 | . . . . . . . . . . . . . . 1 . . . 5 . Grunt 96 | . 4 2 20 2 . 9 2 . 7 . . . . 9 1 1 2 37 . Brawler 9 | . . . 1 1 . . . . 1 . . . . . . . . 6 . Duelist 7 | . . . 2 . . . . . . . . . . . . . . 5 . Protector 4 | . . . . . . . . . . . . . . . . . . 4 . Sentry 30 | . . . 7 . . 12 1 . 1 . . . . 1 1 1 1 5 . Demolisher 2 | . . 2 . . . . . . . . . . . . . . . . . Hunter 12 | . . . . . . 1 . . . . . . 1 2 . . . 8 . Programmer 12 | . . . . . . . . . . . . . . 3 . . 3 6 . Behemoth 1 | . . . . . . . . . . . . . . . . . 1 . . Investigator 2 | . . . . . . . . . . . . . . . . . . 2 . Striker 8 | . . . . . . . . . . . . . . . . . . 8 . Executioner 5 | . . . . . . . . . . . . . . . . . . 5 . Explorer 1 | . . . . . . . . 1 . . . . . . . . . . . Scrapper 1 | . . . . . . . . 1 . . . . . . . . . . . Zionite 1 | . . . . 1 . . . . . . . . . . . . . . . Decomposer 1 | . . . . . . . . . . 1 . . . . . . . . . Thug 1 | . . . . . . . . . . 1 . . . . . . . . . Savage 2 | . . . . . . . . . . 2 . . . . . . . . . Best Kill Streak 26 | 2 7 2 15 4 1 5 3 1 5 3 . . 4 7 1 1 3 26 . Combat Bots Only 21 | . 5 2 7 3 . 4 2 1 4 3 . . 4 5 1 1 2 21 . Max Kills in Single Turn 5 | 1 2 2 5 2 1 2 1 1 4 1 . . 2 2 1 1 1 4 . Gunslinging 1 | . . . 1 . . . . . . . . . . . . . . 1 . Exploded 4 | . 1 . 4 2 . . . . 3 1 . . 2 2 . . . 4 . Melee 1 | . . . . . . . . . . . . . . 1 . . . 1 . Uniques/NPCs Destroyed 1 | . . . . . . . . 1 . . . . . . . . . . . Triborg (-8/Scraptown) Combat | -11 -10 -10 -9 -9 -8 -8 -8 -8 -6 -6 -6 -6 -5 -5 -4 -3 -2 -1 -1 -------- Run | Yrd Mat Min Mat Min Mat Sto Rec Scr Fac Low Low Zio Pro Fac Fac Res Res Acc Com Hostile Shots Fired 1747 | . 53 25 147 4 . 98 6 3 102 5 11 . 34 199 10 14 84 942 10 Missed 499 | . 14 5 39 2 . 30 4 1 51 2 4 . 12 55 2 7 26 240 5 Hits 1248 | . 39 20 108 2 . 68 2 2 51 3 7 . 22 144 8 7 58 702 5 Melee 72 | . . . 7 . . . . 2 . . . . . 1 . . . 62 . Projectile 1176 | . 39 20 101 2 . 68 2 . 51 3 7 . 22 143 8 7 58 640 5 AOE 17 | . . 14 . . . . . . . . . . . . . . 1 2 . Critical Strikes 69 | . . . 3 . . 6 1 . . . . . . 9 . . 3 47 . Actively Blocked 1 | . . . . . . . . . . . . . . . . . . 1 . Part Disruptions 4 | . . . . . . 1 . . . . . . . . . . . 3 . Damage Taken 26272 | . 372 646 1456 55 . 986 29 53 638 55 78 . 301 2717 221 180 1588 16793 104 Core 2466 | . 24 130 227 . . 81 . . 66 . 12 . 15 180 . . 22 1692 17 Absorbed by Shields 4537 | . . . . . . . . . 120 . . . . 214 79 7 298 3819 . Reduced by Siege Mode 349 | . . . . . . . . . . . . . . . . . . 349 . Redirected to Shielding 72 | . . . . . . . . . . . . . . . . . . 66 6 Ignored by Resistances 534 | . . . . . . 72 2 . 45 6 22 . 102 109 . . . 176 . Regen/Repaired (Parts) 5728 | . . . 157 . . 57 . . 209 . . . . . . 68 638 4599 . Core Remaining (%) 90 | 100 . 67 . 87 . . . 87 . . . . 90 83 100 100 98 . . Volleys Fired 689 | 3 44 13 127 10 1 73 5 4 34 10 5 5 13 69 12 10 39 210 2 Largest 5 | 2 2 2 2 2 2 3 2 2 3 4 3 2 4 4 4 4 4 5 1 Hottest 303 | 40 100 100 100 46 46 71 50 74 270 303 270 180 303 303 189 180 132 208 120 Shots Fired 1733 | 6 79 25 221 18 2 171 10 6 78 26 16 10 35 184 39 37 153 615 2 Gun 1203 | 6 35 4 126 16 2 171 10 . . 1 . . 6 90 31 36 153 516 . Cannon 427 | . 35 20 74 . . . . 5 75 22 16 10 25 84 6 . . 53 2 Launcher 92 | . 2 . 20 2 . . . . 3 3 . . 4 10 2 . . 46 . Special 11 | . 7 1 1 . . . . 1 . . . . . . . 1 . . . Kinetic 1332 | 6 70 16 174 16 2 171 10 5 36 1 . . 6 90 31 29 153 516 . Thermal 307 | . 7 9 27 . . . . . 39 22 16 10 25 84 6 7 . 53 2 Explosive 91 | . 2 . 20 2 . . . . 2 3 . . 4 10 2 . . 46 . Electromagnetic 1 | . . . . . . . . . 1 . . . . . . . . . . Robot Hit Streak 53 | 5 8 5 29 34 9 32 9 8 13 2 1 2 5 13 13 9 14 53 . Robot Miss Streak 6 | . 3 2 3 1 . 4 2 . 2 2 4 1 2 6 4 3 2 5 . Penetration Max 2 | . . . . . . . . . . . . . . 1 1 . 1 2 . Secondary Targets 23 | . . . 1 1 . 4 . . . . . . . . . 1 . 16 . Max Gunslinging Chain 2 | . . . 1 1 . 1 . . . . . . . . . 1 . 2 . Shots Hit Robots 1206 | 5 46 15 158 12 2 129 10 3 53 9 1 3 20 124 23 24 112 457 . Core Hits 752 | 4 19 6 110 9 1 58 7 2 31 11 . . 15 66 11 10 32 360 . Critical Kills 11 | . . . . . . 1 . . . . . . . 2 1 . . 7 . Critical Parts Destroyed 28 | . . . . . . 3 . . . . . . 2 8 1 . 2 12 . Critical Strikes 46 | . . . 3 . . 4 . . 2 . . . 2 10 2 . 3 20 . Meltdown 2 | . . . . . . . . . . . . . . 1 . . . 1 . Destroy 38 | . . . . . . 4 . . . . . . 2 9 2 . 3 18 . Blast 5 | . . . 3 . . . . . 2 . . . . . . . . . . Sever 1 | . . . . . . . . . . . . . . . . . . 1 . Melee Attacks 38 | . . . 14 . . 2 . . 1 . . 6 . 2 1 1 3 8 . Impact . | . . . . . . . . . . . . . . . . . . . . Slashing 24 | . . . 14 . . 2 . . . . . . . . . . . 8 . Piercing 6 | . . . . . . . . . . . . 5 . . 1 . . . . Sneak Attacks 13 | . . . 5 . . . . . 1 . . 1 . 2 . 1 3 . . Combat Hostiles . | . . . . . . . . . . . . . . . . . . . . Follow-up Attacks . | . . . . . . . . . . . . . . . . . . . . Damage Inflicted 54786 | 56 890 338 5677 324 30 2435 215 53 2397 678 28 56 896 4341 557 521 3340 31954 . Guns 22961 | 56 259 50 1381 187 30 2356 197 . . . . . 21 938 439 521 3311 13215 . Cannons 8360 | . 449 281 1542 . . . . 53 1489 304 28 56 468 2018 111 . . 1561 . Explosions 22447 | . 160 . 2270 134 . . . . 857 353 . . 407 1319 . . . 16947 . Melee 613 | . . . 480 . . . . . . . . . . . . . . 133 . Ramming 405 | . 22 7 4 3 . 79 18 . 51 21 . . . 66 7 . 29 98 . Kinetic 25456 | 56 708 243 2691 187 30 2356 197 53 609 . . . 21 938 439 402 3311 13215 . Thermal 6944 | . . 88 232 . . . . . 1534 304 28 56 468 2085 111 119 . 1919 . Explosive 21210 | . 160 . 2270 134 . . . . 203 353 . . 407 1252 . . . 16431 . Electromagnetic 158 | . . . . . . . . . . . . . . . . . . 158 . Impact . | . . . . . . . . . . . . . . . . . . . . Slashing 613 | . . . 480 . . . . . . . . . . . . . . 133 . Piercing . | . . . . . . . . . . . . . . . . . . . . Highest Corruption 53 | . . . . . . 4 4 . . 26 28 53 . 9 . . 4 12 12 Average Corruption 11 | . . . . . . 4 4 . . 23 27 31 . 7 . . 3 5 10 Corruption Purged 15 | . . . . . . . . . . . . . . . . . . 15 . Corruption Blocked . | . . . . . . . . . . . . . . . . . . . . Effects 120 | . . . . . . 14 6 . . 19 26 7 . 5 . . 6 33 4 Message Errors 32 | . . . . . . 6 2 . . 5 6 1 . 1 . . 1 10 . Matter Fused 21 | . . . . . . 1 . . . 4 6 2 . . . . 2 5 1 Heat Flow Errors 16 | . . . . . . 1 1 . . 2 5 1 . . . . 2 3 1 Energy Discharges 14 | . . . . . . 2 2 . . 3 3 1 . . . . . 3 . Parts Rejected 4 | . . . . . . 1 . . . . . . . 1 . . . 2 . Parts Fused 2 | . . . . . . . . . . . 1 . . 1 . . . . . Data Loss (minor) 15 | . . . . . . 1 1 . . 4 3 1 . . . . . 3 2 Data Loss (major) 1 | . . . . . . 1 . . . . . . . . . . . . . Misfires 6 | . . . . . . 1 . . . 1 1 1 . 1 . . . 1 . Alerts 1 | . . . . . . . . . . . . . . . . . . 1 . Misdirections 3 | . . . . . . . . . . . 1 . . . . . . 2 . Weapon Failures 5 | . . . . . . . . . . . . . . 1 . . 1 3 . Overload Shots . | . . . . . . . . . . . . . . . . . . . . Overflow Damage 1062 | . 5 . 182 . . . . . 24 14 . . 32 76 . . . 729 . Projectiles 260 | . 5 . 60 . . . . . 3 . . . 32 60 . . . 100 . Explosions 703 | . . . 44 . . . . . 19 . . . . 11 . . . 629 . Melee 99 | . . . 78 . . . . . 2 14 . . . 5 . . . . . Knockbacks 18 | . 3 2 9 . . 1 1 . 1 . . . . . . . 1 . . Impact 3 | . . . . . . 1 1 . . . . . . . . . 1 . . Kinetic 14 | . 3 2 8 . . . . . 1 . . . . . . . . . . Secondary 1 | . . . 1 . . . . . . . . . . . . . . . . Self-Inflicted Damage 1250 | . . . 101 38 . . . . 23 . . . . 21 . . . 1067 . Shots 25 | . . . 3 2 . . . . 1 . . . . 1 . . . 18 . Rammed 44 | . 8 2 . . . 8 . . 8 1 . . . 7 1 . 2 7 . Targets Rammed 59 | . 8 2 1 1 . 10 2 . 8 1 . . . 7 1 . 2 16 . Kicked 9 | . . . . . . . . . . . . . . . . . . 9 . Crushed 6 | . . . 1 1 . 2 2 . . . . . . . . . . . . Highest Temperature 522 | . 168 99 180 . . 138 131 30 362 259 233 172 309 378 3 195 522 455 157 Average Temperature 80 | . 57 41 23 . . 16 49 12 146 110 78 68 141 130 3 69 117 56 45 Received Heat Transfer 3557 | . 90 18 399 . . 450 9 . 167 18 . . 27 337 18 21 965 1020 18 Effects 13 | . . . . . . . . . . . . . . 7 . . 4 2 . Shutdowns 5 | . . . . . . . . . . . . . . 2 . . 2 1 . Energy Bleed 1 | . . . . . . . . . . . . . . . . . . 1 . Interference 5 | . . . . . . . . . . . . . . 5 . . . . . Short Circuit 2 | . . . . . . . . . . . . . . . . . 2 . . Siege Activations 2 | . . . . . . . . . . . . . . . . . 1 1 . Total Turns 195 | . . . . . . . . . . . . . . . . . 5 190 . Longest Duration 190 | . . . . . . . . . . . . . . . . . 5 190 . Martial Activations . | . . . . . . . . . . . . . . . . . . . . Shielding Activations . | . . . . . . . . . . . . . . . . . . . . Robots Disrupted . | . . . . . . . . . . . . . . . . . . . . Combat Hostiles . | . . . . . . . . . . . . . . . . . . . . Robots Corrupted 2 | . . . . . . . . . . 1 . . . 1 . . . . . Combat Hostiles . | . . . . . . . . . . . . . . . . . . . . Parts Fried 2 | . . . . . . . . . . . . . . . . . . 2 . Impact Corruptions 5 | . . . . . . . . . 1 3 . . . 1 . . . . . Robots Melted 2 | . . . . . . . . . . . . . . 1 . . . 1 . Combat Hostiles 2 | . . . . . . . . . . . . . . 1 . . . 1 . Parts Melted 12 | . . . . . . . . . 1 . . . 2 7 . . . 2 . Heat Transferred 6401 | . . 185 592 . . . . . 1580 407 9 74 592 937 120 185 . 1720 . Parts Sabotaged 2 | . . . . . . . . . . . . . . 2 . . . . . Parts Stolen . | . . . . . . . . . . . . . . . . . . . . Parts Stripped . | . . . . . . . . . . . . . . . . . . . . Power Chain Reactions 1 | . . . . . . . . . . . . . . 1 . . . . . Alert | -11 -10 -10 -9 -9 -8 -8 -8 -8 -6 -6 -6 -6 -5 -5 -4 -3 -2 -1 -1 ------- Run | Yrd Mat Min Mat Min Mat Sto Rec Scr Fac Low Low Zio Pro Fac Fac Res Res Acc Com Maximum Alert Level 5 | . . . 4 2 . 3 1 . 5 . . . . 5 3 4 4 5 5 Low Security (%) 35 | 100 100 100 25 . 100 51 88 . 11 . . . . 58 . . . . . Level 1 5 | . . . 6 13 . 15 11 . 6 . . . . 2 . . . . . Level 2 18 | . . . 27 86 . 31 . . 27 . . . . 3 . 17 30 . . Level 3 12 | . . . 23 . . 1 . . 7 . . . . 12 100 77 12 3 . Level 4 12 | . . . 17 . . . . . 26 . . . . 19 . 4 57 7 . Level 5 4 | . . . . . . . . . 20 . . . . 3 . . . 2 100 High Security 11 | . . . . . . . . . . . . . . . . . . 86 . Max Security . | . . . . . . . . . . . . . . . . . . . . Sterilizations 2 | . . . 1 . . . . . . . . . . . . . . 1 . Peak Influence 7132 | 10 103 50 1270 572 142 709 256 . 1831 . . . . 1766 964 1100 1506 7132 4564 Initial 4564 | . . . 16 489 137 51 256 . . . . . . 60 861 497 613 890 4564 Average 1038 | 1 38 7 607 458 135 290 88 . 939 . . . . 486 909 948 1090 4393 4550 Influence Increases 18113 | 10 306 109 1879 225 5 1362 80 . 2333 74 112 . 336 2208 303 704 1109 6952 6 Destroy 0b10 Robot/C 8100 | . 200 80 1080 160 . 500 60 . 620 40 80 . 240 960 120 280 440 3240 . Destroy 0b10 Robot/NC 765 | 10 25 . 130 10 5 65 10 . 140 . . . . 120 15 . 65 170 . Destroy Leader 1554 | . 24 20 196 30 . 184 10 . 140 20 10 . 30 204 30 50 120 486 . Allied During Kill 1833 | . . 8 . 12 . 25 . . 209 14 22 . 66 341 39 80 145 872 . Successful Hack 84 | . 12 . 44 . . 16 . . 12 . . . . . . . . . . Disable Machine 810 | . 15 . 90 . . 30 . . 255 . . . . 195 45 15 45 120 . Anti-Garrison Action 500 | . . . . . . . . . . . . . . . . 200 150 150 . Destroy Structure 2287 | . 15 1 76 13 . 27 . . 215 . . . . 388 54 64 144 1284 6 Partial Spotted 45 | . . . . . . . . . . . . . . . . 15 . 30 . Lose Combat Pursuer 705 | . 15 . 15 . . 75 . . . . . . . . . . . 600 . Miscellaneous 1430 | . . . 248 . . 440 . . 742 . . . . . . . . . . Influence Decreases 13583 | 10 306 67 667 1127 235 827 737 . 510 1181 415 413 240 546 1113 561 716 1304 2608 Entered New Map 7727 | . . . 26 765 215 71 401 . . 675 137 413 . 36 897 451 478 594 2568 Time Decay 4788 | 10 306 49 591 342 20 506 336 . 510 506 278 . 240 400 206 110 238 100 40 Search Patrol Dispatched 100 | . . . . . . 100 . . . . . . . . . . . . . Lost Part 520 | . . . 50 . . . . . . . . . . 90 10 . . 370 . Lost Ally 298 | . . 18 . 20 . . . . . . . . . 20 . . . 240 . Purge Threat 150 | . . . . . . 150 . . . . . . . . . . . . . Squads Dispatched 88 | . 1 . 5 . . 2 1 . 13 . . . . 12 1 2 9 41 1 Investigation 7 | . 1 . . . . 1 1 . 1 . . . . 2 . 1 . . . Extermination 6 | . . . . . . . . . 2 . . . . 3 . . 1 . . Reinforcement 16 | . . . 3 . . 1 . . 2 . . . . 2 1 1 3 2 1 Assault 50 | . . . 2 . . . . . 8 . . . . 1 . . 5 34 . Garrison 9 | . . . . . . . . . . . . . . 4 . . . 5 . Intercept . | . . . . . . . . . . . . . . . . . . . . Searches Triggered 1 | . . . . . . 1 . . . . . . . . . . . . . Construction Impeded 4 | . . . . . . . . . 2 . . . . . . . 1 1 . Haulers Reinforced 2 | . . . . . . . . . . . . . . 1 . . 1 . . Active Scanning Responses . | . . . . . . . . . . . . . . . . . . . . Cargo Convoy Interrupts 1 | . . . . . . . . . . . . . . 1 . . . . . Stealth | -11 -10 -10 -9 -9 -8 -8 -8 -8 -6 -6 -6 -6 -5 -5 -4 -3 -2 -1 -1 --------- Run | Yrd Mat Min Mat Min Mat Sto Rec Scr Fac Low Low Zio Pro Fac Fac Res Res Acc Com Distress Signals 15 | . 2 . 4 . . . . . 1 . . . . 2 . . 1 5 . Communications Jammed 164 | . . . . . . . . . . . . . . 12 2 1 96 53 . Distress Signals 153 | . . . . . . . . . . . . . . 9 . 1 94 49 . Times Spotted 614 | . 21 7 73 8 4 35 3 3 29 4 5 . 10 64 10 13 25 291 9 Peak Tracking Total 26 | . 3 4 8 3 3 7 2 13 5 4 4 . 5 12 3 3 5 26 6 Tactical Retreats 30 | . 1 . 1 . . 5 . . . . . . . . . . . 23 . Traps | -11 -10 -10 -9 -9 -8 -8 -8 -8 -6 -6 -6 -6 -5 -5 -4 -3 -2 -1 -1 ------- Run | Yrd Mat Min Mat Min Mat Sto Rec Scr Fac Low Low Zio Pro Fac Fac Res Res Acc Com Traps Triggered 10 | . 1 . . . . 5 . . 2 . . . . 1 . . . 1 . Indirectly . | . . . . . . . . . . . . . . . . . . . . Trap Hack Attempts . | . . . . . . . . . . . . . . . . . . . . Triggered . | . . . . . . . . . . . . . . . . . . . . Disarmed . | . . . . . . . . . . . . . . . . . . . . Reprogrammed . | . . . . . . . . . . . . . . . . . . . . Reused . | . . . . . . . . . . . . . . . . . . . . Traps Extracted . | . . . . . . . . . . . . . . . . . . . . Installed . | . . . . . . . . . . . . . . . . . . . . Triggered . | . . . . . . . . . . . . . . . . . . . . Machines | -11 -10 -10 -9 -9 -8 -8 -8 -8 -6 -6 -6 -6 -5 -5 -4 -3 -2 -1 -1 ---------- Run | Yrd Mat Min Mat Min Mat Sto Rec Scr Fac Low Low Zio Pro Fac Fac Res Res Acc Com Machines Disabled 64 | . 1 . 6 . . 2 . 3 17 . 2 . . 13 3 1 4 12 . Max in Single Turn 5 | . 1 . 3 . . 2 . 1 5 . . . . 2 1 . 1 2 . Garrison Access 4 | . . . . . . 1 . . . . . . . . . 1 1 1 . Energy Cycler 1 | . . . . . . . . . . . . . . . . . . 1 . Machines Repaired . | . . . . . . . . . . . . . . . . . . . . Machines Dismantled . | . . . . . . . . . . . . . . . . . . . . Machines Sabotaged . | . . . . . . . . . . . . . . . . . . . . Overloaded Fab Kills . | . . . . . . . . . . . . . . . . . . . . Hacking | -11 -10 -10 -9 -9 -8 -8 -8 -8 -6 -6 -6 -6 -5 -5 -4 -3 -2 -1 -1 --------- Run | Yrd Mat Min Mat Min Mat Sto Rec Scr Fac Low Low Zio Pro Fac Fac Res Res Acc Com Machines Accessed 48 | . 4 . 7 . 1 13 3 . 6 1 . . . 6 1 1 3 1 1 Terminals 30 | . 3 . 4 . 1 10 3 . 2 . . . . 4 1 . 1 . 1 Fabricators 5 | . . . . . . . . . 3 . . . . 1 . . . 1 . Repair Stations 7 | . 1 . 1 . . 2 . . 1 . . . . . . . 2 . . Recycling Units 1 | . . . 1 . . . . . . . . . . . . . . . . Scanalyzers 1 | . . . 1 . . . . . . . . . . . . . . . . Garrison Access 3 | . . . . . . 1 . . . . . . . 1 . 1 . . . Total Hacks 97 | . 10 . 19 . 3 28 4 . 11 1 . . . 11 1 2 3 2 2 Successful 36 | . 2 . 14 . 1 12 1 . 3 1 . . . 1 . 1 . . . Failed 60 | . 8 . 4 . 2 16 3 . 8 . . . . 10 1 1 3 2 2 Catastrophic 12 | . . . 1 . . . 1 . 5 . . . . 3 1 . 1 . . Database Lockouts 1 | . . . 1 . . . . . . . . . . . . . . . . Manual 49 | . 7 . 5 . 3 19 4 . 6 . . . . 3 . 2 . . . Terminals 61 | . 6 . 11 . 3 24 4 . 4 . . . . 5 1 . 1 . 2 Fabricators 9 | . . . . . . . . . 4 . . . . 3 . . . 2 . Repair Stations 16 | . 4 . 4 . . 3 . . 3 . . . . . . . 2 . . Recycling Units 1 | . . . 1 . . . . . . . . . . . . . . . . Scanalyzers 3 | . . . 3 . . . . . . . . . . . . . . . . Garrison Access 6 | . . . . . . 1 . . . . . . . 3 . 2 . . . Terminal Hacks 18 | . 1 . 6 . 1 8 1 . . 1 . . . . . . . . . Robot Analysis 8 | . 1 . 2 . . 4 1 . . . . . . . . . . . . Prototype ID Bank 2 | . . . 2 . . . . . . . . . . . . . . . . Open Door 4 | . . . . . . 3 . . . 1 . . . . . . . . . Branch Access Points 1 | . . . . . 1 . . . . . . . . . . . . . . Scanalyzer Index 1 | . . . 1 . . . . . . . . . . . . . . . . Unreport Threat 1 | . . . . . . 1 . . . . . . . . . . . . . Registered Components 1 | . . . 1 . . . . . . . . . . . . . . . . Fabricator Hacks 1 | . . . . . . . . . . . . . . 1 . . . . . Network Status 1 | . . . . . . . . . . . . . . 1 . . . . . Repair Station Hacks 9 | . 1 . 4 . . 2 . . 2 . . . . . . . . . . Scan Component 4 | . . . 2 . . 1 . . 1 . . . . . . . . . . Repair 4 | . . . 2 . . 1 . . 1 . . . . . . . . . . Refit 1 | . 1 . . . . . . . . . . . . . . . . . . Recycling Unit Hacks 1 | . . . 1 . . . . . . . . . . . . . . . . Retrieve Matter 1 | . . . 1 . . . . . . . . . . . . . . . . Scanalyzer 2 | . . . 2 . . . . . . . . . . . . . . . . Retrieve Study 2 | . . . 2 . . . . . . . . . . . . . . . . Garrison Access Hacks 1 | . . . . . . 1 . . . . . . . . . . . . . Seal Access 1 | . . . . . . 1 . . . . . . . . . . . . . Unauthorized Hacks 4 | . . . 1 . . 1 . . 1 . . . . . . 1 . . . Terminals 2 | . . . 1 . . 1 . . . . . . . . . . . . . Botnet 2 | . . . 1 . . 1 . . . . . . . . . . . . . Fabricators 1 | . . . . . . . . . 1 . . . . . . . . . . Liberate 1 | . . . . . . . . . 1 . . . . . . . . . . Repair Stations . | . . . . . . . . . . . . . . . . . . . . Recycling Units . | . . . . . . . . . . . . . . . . . . . . Scanalyzers . | . . . . . . . . . . . . . . . . . . . . Garrison Access 1 | . . . . . . . . . . . . . . . . 1 . . . Jam 1 | . . . . . . . . . . . . . . . . 1 . . . Data Cores Recovered 2 | . 1 . . . 1 . . . . . . . . . . . . . . Used 1 | . . . . . 1 . . . . . . . . . . . . . . Hacking Detections 40 | . 4 . 5 . 1 9 3 . 6 . . . . 6 1 . 3 1 1 Full Trace Events 2 | . . . . . . . . . 1 . . . . 1 . . . . . Feedback Events . | . . . . . . . . . . . . . . . . . . . . Feedback Blocked . | . . . . . . . . . . . . . . . . . . . . Robot Schematics Acquired 3 | . . . . . . . . . . . . 3 . . . . . . . Robots Built . | . . . . . . . . . . . . . . . . . . . . Authchips . | . . . . . . . . . . . . . . . . . . . . Time . | . . . . . . . . . . . . . . . . . . . . Total Robot Build Rating . | . . . . . . . . . . . . . . . . . . . . Part Schematics Acquired 15 | . . . . . . . . . . . . 15 . . . . . . . Parts Built . | . . . . . . . . . . . . . . . . . . . . Authchips . | . . . . . . . . . . . . . . . . . . . . Time . | . . . . . . . . . . . . . . . . . . . . Total Part Build Rating . | . . . . . . . . . . . . . . . . . . . . Part Studies Acquired 2 | . . . 2 . . . . . . . . . . . . . . . . Parts Repaired 4 | . . . 2 . . 1 . . 1 . . . . . . . . . . Time 140 | . . . 58 . . 38 . . 44 . . . . . . . . . . Parts Recycled . | . . . . . . . . . . . . . . . . . . . . Recycled Matter . | . . . . . . . . . . . . . . . . . . . . Retrieved Matter 238 | . . . 238 . . . . . . . . . . . . . . . . Retrieved Components . | . . . . . . . . . . . . . . . . . . . . Parts Scanalyzed . | . . . . . . . . . . . . . . . . . . . . Part Schematics Acquired . | . . . . . . . . . . . . . . . . . . . . Parts Damaged . | . . . . . . . . . . . . . . . . . . . . Bothacking | -11 -10 -10 -9 -9 -8 -8 -8 -8 -6 -6 -6 -6 -5 -5 -4 -3 -2 -1 -1 ------------ Run | Yrd Mat Min Mat Min Mat Sto Rec Scr Fac Low Low Zio Pro Fac Fac Res Res Acc Com Used RIF Installer . | . . . . . . . . . . . . . . . . . . . . Robots Hacked 2 | . . . . . . . . . 1 . . . . . . 1 . . . Non-combat . | . . . . . . . . . . . . . . . . . . . . Combat 2 | . . . . . . . . . 1 . . . . . . 1 . . . Robot Hacks Applied 7 | . . . . . . . . . 1 . . 1 . 1 . 1 3 . . parse_system 7 | . . . . . . . . . 1 . . 1 . 1 . 1 3 . . Relay Couplers Released 4 | . . . . . . . . . . . . . . . . . 3 1 . Machine Destruction 4 | . . . . . . . . . . . . . . . . . 3 1 . Fabnet Peak Effective % . | . . . . . . . . . . . . . . . . . . . . Robots Rewired 1 | . . . . . . . . . . . . . . 1 . . . . . Allies Hacked 1 | . . . . . . . . . . . . . . 1 . . . . . Hacks Repelled . | . . . . . . . . . . . . . . . . . . . . Allies | -11 -10 -10 -9 -9 -8 -8 -8 -8 -6 -6 -6 -6 -5 -5 -4 -3 -2 -1 -1 -------- Run | Yrd Mat Min Mat Min Mat Sto Rec Scr Fac Low Low Zio Pro Fac Fac Res Res Acc Com Total Allies 38 | . . 3 . 2 . 10 . 1 . . . . . 5 . 1 . 16 . Largest Group 11 | . . 3 . 2 . 10 10 11 1 1 1 1 1 4 1 1 1 11 . Highest-Rated Group 1147 | . . 40 . 47 . 173 173 637 464 455 455 455 455 676 455 544 562 1147 . Highest-Rated Ally 582 | . . 16 . 31 . 29 29 464 464 455 455 455 455 455 455 544 562 582 . Total Orders 16 | . . . . . . . 4 12 . . . . . . . . . . . STAY 14 | . . . . . . . 2 12 . . . . . . . . . . . FOLLOW 2 | . . . . . . . 2 . . . . . . . . . . . . Ally Attacks 683 | . . 2 . 15 . 17 . 88 59 19 19 3 22 132 14 26 45 222 . Total Damage 44917 | . . 15 . 253 . 198 . 2065 5846 588 1435 158 985 7689 478 1842 5726 17639 . Kills 254 | . . . . 2 . 4 . 17 45 3 8 2 6 50 6 12 26 73 . Allies Corrupted . | . . . . . . . . . . . . . . . . . . . . Allies Melted 1 | . . . . . . . . 1 . . . . . . . . . . . X0-1V1 Amusement Gains 502 | . 7 20 107 . 5 15 . . 65 . . 50 . 80 . 12 73 40 28 Average Entertainment 43 | . 6 12 23 61 30 22 15 8 16 29 16 60 33 58 62 46 70 97 72 Good Acts 98 | . 1 7 13 9 . 5 3 4 1 . 2 . 4 8 . . 1 37 3 Bad Acts 63 | . . . 9 . . 11 1 . 14 9 . . . 4 1 . 1 12 1 Intel | -11 -10 -10 -9 -9 -8 -8 -8 -8 -6 -6 -6 -6 -5 -5 -4 -3 -2 -1 -1 ------- Run | Yrd Mat Min Mat Min Mat Sto Rec Scr Fac Low Low Zio Pro Fac Fac Res Res Acc Com Active Infowar (turns) 5835 | . . . 1300 . . . . . 217 1276 334 124 394 398 427 239 435 691 . Sensors 3752 | . . . . . . . . . 217 1276 334 124 394 346 211 131 298 421 . Structural 18 | . . . 18 . . . . . . . . . . . . . . . . Seismic 1282 | . . . 1282 . . . . . . . . . . . . . . . . Jamming 1731 | . . . . . . . . . . . . . . 52 426 239 413 601 . Robot Analysis Total 8 | . 1 . 2 . . 4 1 . . . . . . . . . . . . Derelict Logs Recovered 5 | . . . . 2 . . . . . 1 1 . 1 . . . . . . Drone Launches . | . . . . . . . . . . . . . . . . . . . . Drone Recoveries . | . . . . . . . . . . . . . . . . . . . . Exploration | -11 -10 -10 -9 -9 -8 -8 -8 -8 -6 -6 -6 -6 -5 -5 -4 -3 -2 -1 -1 ------------- Run | Yrd Mat Min Mat Min Mat Sto Rec Scr Fac Low Low Zio Pro Fac Fac Res Res Acc Com Turns Passed 18208 | 93 868 436 2375 762 41 1370 1087 1438 1778 1373 611 1099 603 1325 429 239 517 1682 82 Spaces Moved 8765 | 46 419 204 1123 482 27 635 517 760 770 604 280 410 264 634 187 110 211 939 143 Core 756 | 3 . . . . . . . . . . . . . . . . . 610 143 Treads 7538 | 43 419 175 859 482 27 635 517 584 770 604 280 410 264 634 187 110 211 327 . Legs 1 | . . . . . . . . . . . . . . . . . . 1 . Wheels 469 | . . 29 264 . . . . 176 . . . . . . . . . . . Hover . | . . . . . . . . . . . . . . . . . . . . Flight 1 | . . . . . . . . . . . . . . . . . . 1 . Fastest Speed 50 | 50 160 105 105 145 145 145 200 125 200 206 206 206 206 155 163 163 155 50 50 Average Speed 164 | 152 160 152 150 145 145 163 200 182 201 206 206 206 206 158 163 164 162 86 50 Slowest Speed 245 | 160 160 160 200 145 145 230 200 200 206 206 206 206 206 213 163 165 245 245 50 Overloaded Moves . | . . . . . . . . . . . . . . . . . . . . Propulsion Burnouts . | . . . . . . . . . . . . . . . . . . . . Robots Hopped . | . . . . . . . . . . . . . . . . . . . . Potential Cave-ins 6 | . . . . . . . . . . . . . . . . . . 6 . Cave-ins Triggered 1 | . . . . . . . . . . . . . . . . . . 1 . Exploration Rate (%) 40 | 5 57 49 78 91 6 90 91 52 25 70 39 14 56 27 6 4 10 35 10 Regions Visited 19 Branch Regions 10 Pre-discovered Areas 3 | . . 1 . 2 . . . . . . . . . . . . . . . Known Exits Taken 12 | . . 1 . 1 1 . . . 1 1 1 1 1 1 1 1 1 . . Unknown Exits Taken 7 | 1 1 . 1 . . 1 1 1 . . . . . . . . . 1 . Scrap Searched 13 | . . 1 . 2 . . . 3 . 2 1 1 3 . . . . . . Spaces Dug 26 | . . 1 2 . . 2 . . . . 1 6 . 6 . . . 6 2 Terrain Destroyed 734 | . 25 1 87 18 . 23 . . 37 32 7 7 31 34 13 2 4 411 2 Melee 8 | . . . 1 . . 2 . . . . . 5 . . . . . . . Projectile 95 | . . 1 7 . . . . . 3 6 7 2 3 19 1 2 4 38 2 AOE 622 | . 25 . 79 18 . 21 . . 34 26 . . 28 13 12 . . 366 . Terrain Rammed . | . . . . . . . . . . . . . . . . . . . . Walls Destroyed . | . . . . . . . . . . . . . . . . . . . . Machines Disabled . | . . . . . . . . . . . . . . . . . . . . Actions | -11 -10 -10 -9 -9 -8 -8 -8 -8 -6 -6 -6 -6 -5 -5 -4 -3 -2 -1 -1 --------- Run | Yrd Mat Min Mat Min Mat Sto Rec Scr Fac Low Low Zio Pro Fac Fac Res Res Acc Com Total 11101 | 60 521 300 1554 527 27 813 561 804 922 710 303 642 293 802 282 154 315 1359 152 Wait 913 | 1 17 73 187 20 . 34 18 19 51 80 18 211 3 24 47 4 26 78 2 Move 8746 | 45 418 203 1122 481 26 634 516 759 769 603 279 409 263 633 186 109 210 938 143 Hop . | . . . . . . . . . . . . . . . . . . . . Pick Up 130 | 5 11 2 22 6 . 13 5 5 12 4 . 1 2 13 8 6 8 7 . Fast Attach 96 | 6 2 1 15 . . 14 5 3 10 . . . . 8 1 2 2 26 1 Attach 66 | . . 3 3 . . 5 . 1 4 . . . . 12 3 2 5 27 1 Detach 32 | . 1 . 3 . . 1 . 2 . . . . . 5 1 4 1 12 2 Swap 177 | . 9 2 37 4 . 6 . 5 12 9 1 9 11 18 13 8 9 24 . Drop 140 | . 11 1 23 5 . 18 10 6 17 3 . 1 1 11 9 8 10 5 1 Fire 689 | 3 44 13 127 10 1 73 5 4 34 10 5 5 13 69 12 10 39 210 2 Melee 38 | . . . 14 . . 2 . . 1 . . 6 . 2 1 1 3 8 . Ram 2 | . . . . . . . . . . . . . . . . . . 2 . Kick 9 | . . . . . . . . . . . . . . . . . . 9 . Crush 48 | . 8 2 1 1 . 10 2 . 8 1 . . . 7 1 . 2 5 . Escape Stasis 15 | . . . . . . 3 . . 4 . . . . . . . . 8 . Rewire . | . . . . . . . . . . . . . . . . . . . . Trap . | . . . . . . . . . . . . . . . . . . . . Miscellaneous . | . . . . . . . . . . . . . . . . . . . . Route ------- -11/Scrapyard -10/Materials (discovered 5 exits: *Mat x2 / [*Min x2] / [*Sub]) -10/Mines (discovered 2 exits: *Mat x2) -9/Materials (discovered 3 exits: *Mat x2 / [*Min]) -9/Mines (discovered 2 exits: *Mat x2) -8/Materials (discovered 2 exits: *Sto x2) -8/Storage (discovered 2 exits: [*Fac] / *Rec) -8/Recycling (discovered 2 exits: *Fac / [*Scr]) -8/Scraptown -6/Factory (discovered 3 exits: *Fac x2 / *Low) -6/Lower Caves -6/Lower Caves -6/Zion -5/Proximity Caves -5/Factory -4/Factory -3/Research -2/Research -1/Access (discovered 2 exits: Sur / *Com) -1/Command History --------- Turn | Location | Event 4 | -11/Scrapyard | Discovered new exit (range 15) 94 | -11/Scrapyard | Entered Materials 272 | -10/Materials | Discovered new exit (range 14) 300 | -10/Materials | Build established: Mutant 377 | -10/Materials | Discovered new exit (range 16) 426 | -10/Materials | Discovered new exit (range 13) 653 | -10/Materials | Discovered new exit (range 15) 780 | -10/Materials | Discovered new exit (range 5) 788 | -10/Materials | Prayed at D.C.S.S. Altar Unit 874 | -10/Materials | Matter capacity permanently improved by X0-1V1 (+200; -100 max core) 962 | -10/Materials | Entered Mines 962 | -10/Mines | X0-1V1 activates XOMVISION 971 | -10/Mines | Met a Derelict bent on vengeance 975 | -10/Mines | Learned location of Storage (-8) 986 | -10/Mines | Core integrity permanently improved by X0-1V1 (+250) 1118 | -10/Mines | Assisted by bots powering up and referring to "LRC-V3" 1187 | -10/Mines | Discovered new exit (range 10) 1231 | -10/Mines | Assembled infested the area 1266 | -10/Mines | Lost 3 allies 1322 | -10/Mines | Identified exit to Materials 1322 | -10/Mines | X0-1V1 revealed exit location to -9/Materials 1393 | -10/Mines | Lost 3 parts (2n1w) 1398 | -10/Mines | Entered Materials 1398 | -9/Materials | Evolved 2 slots: Propulsion x1, Utility x1 1505 | -9/Materials | Identified exit to Materials 1505 | -9/Materials | X0-1V1 revealed exit location to -8/Materials 1602 | -9/Materials | X0-1V1 sent hostile S-10 Pest (x3) 1661 | -9/Materials | X0-1V1 vaporized surrounding terrain (radius 16) 1695 | -9/Materials | Central database locked down 1716 | -9/Materials | Ranged accuracy permanently improved by X0-1V1 (+5%; -50 max core) 1774 | -9/Materials | Build established: Scavenger-Mutant 1916 | -9/Materials | X0-1V1 sent hostile G-34 Mercenary (x3) 2158 | -9/Materials | Destroyed 7 combat bots 2187 | -9/Materials | Lost 3 parts (1p2n) 2327 | -9/Materials | Repaired Lgt. Treads+ 2361 | -9/Materials | Repaired Rocket Launcher 2694 | -9/Materials | X0-1V1 revealed exit location to -8/Materials 2802 | -9/Materials | X0-1V1 sent hostile S-10 Pest (x3) 2998 | -9/Materials | First assault squad dispatched 3057 | -9/Materials | X0-1V1 added 0b10 threat records associated with you (minor) 3131 | -9/Materials | Discovered new exit (range 7) 3349 | -9/Materials | X0-1V1 sent you to a vault 3356 | -9/Materials | X0-1V1 added 0b10 threat records associated with you (minor) 3367 | -9/Materials | Found Powered Armor 3423 | -9/Materials | Sterilization system engaged 3423 | -9/Materials | Non-combat units ordered to evacuate 3523 | -9/Materials | Combat units ordered to evacuate 3723 | -9/Materials | Ambient heat levels rising (+10) 3773 | -9/Materials | Entered Mines 3786 | -9/Mines | X0-1V1 put everyone to sleep 3908 | -9/Mines | Learned location of Zion (-6) 3960 | -9/Mines | Build established: Mutant 3979 | -9/Mines | Found a damaged Exp. Sensor Array with a note attached 4000 | -9/Mines | Found Prototype Device 4009 | -9/Mines | Core integrity restored by X0-1V1 (+125) 4147 | -9/Mines | X0-1V1 activates XOMVISION 4225 | -9/Mines | Discovered exit to Materials (range 6) 4309 | -9/Mines | X0-1V1 revealed exit location to -8/Materials 4535 | -9/Mines | Entered Materials 4535 | -8/Materials | Evolved 2 slots: Utility x1, Weapon x1 4552 | -8/Materials | Identified exit to Storage 4576 | -8/Materials | Entered Storage 4969 | -8/Storage | X0-1V1 mutated your Weapon slot to Power slot 5093 | -8/Storage | X0-1V1 sent you into danger 5097 | -8/Storage | X0-1V1 upgraded hostiles (x1) 5278 | -8/Storage | X0-1V1 added 0b10 threat records associated with you (considerable) 5307 | -8/Storage | Repaired Reflective Plating? 5326 | -8/Storage | Used back door to open Recycling access 5326 | -8/Storage | Discovered new exit (range 5) 5518 | -8/Storage | Discovered new exit (range 10) 5654 | -8/Storage | X0-1V1 added 0b10 threat records associated with you (considerable) 5715 | -8/Storage | Assisted by bots powering up and referring to "LRC-V3" 5776 | -8/Storage | Search patrols dispatched 5946 | -8/Storage | Entered Recycling 5946 | -8/Recycling | Accompanied by 10 allies 5947 | -8/Recycling | Joined Warlord attack on 0b10 via Recycling 5986 | -8/Recycling | Build established: Commander-Mutant 6348 | -8/Recycling | Discovered new exit (range 15) 6850 | -8/Recycling | X0-1V1 activates XOMVISION 6960 | -8/Recycling | Scanned before Scraplab entrance 6988 | -8/Recycling | Entered Scraplab 7004 | -8/Recycling | Discovered new exit (range 2) 7033 | -8/Recycling | Entered Scraptown 7033 | -8/Scraptown | Accompanied by 10 allies 7232 | -8/Scraptown | Visited Spacefarers 7268 | -8/Scraptown | Visited Scrapoid Research Area 7306 | -8/Scraptown | Visited Awakened 7324 | -8/Scraptown | Visited Fellowship of the Rings 7352 | -8/Scraptown | Visited Observation Area 7440 | -8/Scraptown | Heard Great Nut preacher, LISTEN AND RECITE! 7626 | -8/Scraptown | Discovered new exit (range 11) 8108 | -8/Scraptown | X0-1V1 brought Wyrm Statue to life 8108 | -8/Scraptown | Attacked by Scraptown defenders 8110 | -8/Scraptown | Attached CPS modules to Chaos Wyrm 8471 | -8/Scraptown | Entered Factory 8471 | -6/Factory | Accompanied by 1 ally 8471 | -6/Factory | Evolved 4 slots: Propulsion x1, Utility x2, Weapon x1 8633 | -6/Factory | X0-1V1 added 0b10 threat records associated with you (considerable) 8768 | -6/Factory | Build established: Scavenger-Tank 8795 | -6/Factory | X0-1V1 enhanced Transport squad support 9171 | -6/Factory | First assault squad dispatched 9415 | -6/Factory | X0-1V1 added 0b10 threat records associated with you (major) 9455 | -6/Factory | Spotted B-75 Beast 9471 | -6/Factory | Allies destroyed B-75 Beast 9636 | -6/Factory | Repaired Med. Reactive Plating 9671 | -6/Factory | Discovered new exit (range 16) 9733 | -6/Factory | Identified exit to Factory 9880 | -6/Factory | X0-1V1 added 0b10 threat records associated with you (major) 10001 | -6/Factory | X0-1V1 mutated your Power slot to Weapon slot 10017 | -6/Factory | Discovered exit to Factory (range 9) 10226 | -6/Factory | Discovered new exit (range 7) 10238 | -6/Factory | Identified exit to Lower Caves 10249 | -6/Factory | Entered Lower Caves 10249 | -6/Lower Caves | Accompanied by 1 ally 10389 | -6/Lower Caves | Learned Factory stockpile data 10748 | -6/Lower Caves | Sensors blinded by X0-1V1 10758 | -6/Lower Caves | Build established: Scavenger-Skirmisher 10765 | -6/Lower Caves | X0-1V1 caused items to flee you 11156 | -6/Lower Caves | Items stopped fleeing you 11229 | -6/Lower Caves | System corruption reached 10% 11499 | -6/Lower Caves | Discovered new exit (range 15) 11589 | -6/Lower Caves | Identified exit to Lower Caves 11622 | -6/Lower Caves | Entered another Lower Caves area 11622 | -6/Lower Caves | Accompanied by 1 ally 11634 | -6/Lower Caves | X0-1V1 whisked you away to safety 11807 | -6/Lower Caves | X0-1V1 activates XOMVISION 11838 | -6/Lower Caves | Attacked by a delusional Derelict stockpiling Unaware 12198 | -6/Lower Caves | Identified exit to Zion 12233 | -6/Lower Caves | Entered Zion 12233 | -6/Zion | Accompanied by 1 ally 12326 | -6/Zion | Acquired unknown access codes intercepted by a Zionite 12352 | -6/Zion | System corruption reached 30% 12371 | -6/Zion | System corruption cleaned by Quarantine Array 12652 | -6/Zion | Found CR-A16's Pointy Stick 12672 | -6/Zion | Build established: Scavenger-Tank 13139 | -6/Zion | Discovered new exit (range 16) 13306 | -6/Zion | Attacked by Zionites 13322 | -6/Zion | Identified exit to Proximity Caves 13332 | -6/Zion | Entered Proximity Caves 13332 | -5/Proximity Caves | Accompanied by 1 ally 13334 | -5/Proximity Caves | Attracted the attention of an 0b10 checkpoint 13643 | -5/Proximity Caves | Learned 4 Factory zone layouts 13813 | -5/Proximity Caves | X0-1V1 revealed exit location to -5/Factory 13935 | -5/Proximity Caves | Entered Factory 13935 | -5/Factory | Accompanied by 1 ally 13935 | -5/Factory | Evolved 2 slots: Power x1, Propulsion x1 14263 | -5/Factory | X0-1V1 vaporized surrounding terrain (radius 19) 14371 | -5/Factory | X0-1V1 enhanced Transport squad support 14673 | -5/Factory | Cargo convoy interrupted 14707 | -5/Factory | X0-1V1 turns hostiles against one another 14710 | -5/Factory | P-70 Sage assimilated allied A-27 Freighter 14712 | -5/Factory | Garrison activated, responded to threat 14718 | -5/Factory | X0-1V1 whisked you away to safety 14727 | -5/Factory | Spotted B-75 Beast 14733 | -5/Factory | Allies destroyed B-75 Beast 14757 | -5/Factory | Lost 7 parts (2p2n2u1w) 14760 | -5/Factory | X0-1V1 foreshadows a heat wave 14767 | -5/Factory | Garrison activated, responded to threat 14901 | -5/Factory | Ambient heat levels rising (+10) 15135 | -5/Factory | First assault squad dispatched 15170 | -5/Factory | Ambient heat levels rising (+10) 15229 | -5/Factory | X0-1V1 vaporized surrounding terrain (radius 21) 15229 | -5/Factory | Discovered new exit (range 10) 15258 | -5/Factory | Identified exit to Factory 15260 | -5/Factory | Entered another Factory area 15260 | -4/Factory | Accompanied by 1 ally 15260 | -4/Factory | Evolved 2 slots: Utility x2 15674 | -4/Factory | Discovered new exit (range 6) 15681 | -4/Factory | Identified exit to Research 15689 | -4/Factory | Entered Research 15689 | -3/Research | Accompanied by 1 ally 15689 | -3/Research | Evolved 2 slots: Propulsion x1, Utility x1 15754 | -3/Research | Chaos Wyrm evolved into Greater Chaos Wyrm 15763 | -3/Research | Found Wyrmplate 15857 | -3/Research | Attached CPS modules to Greater Chaos Wyrm 15882 | -3/Research | Discovered new exit (range 16) 15913 | -3/Research | Identified exit to Research 15928 | -3/Research | Entered another Research area 15928 | -2/Research | Accompanied by 1 ally 15928 | -2/Research | Evolved 2 slots: Power x1, Utility x1 15988 | -2/Research | Spotted B-90 Cyclops 16001 | -2/Research | Destroyed B-90 Cyclops 16079 | -2/Research | Spotted B-90 Cyclops 16079 | -2/Research | X0-1V1 sent you into danger 16083 | -2/Research | Allies destroyed B-90 Cyclops 16178 | -2/Research | First assault squad dispatched 16190 | -2/Research | Spotted B-90 Cyclops 16232 | -2/Research | X0-1V1 put everyone to sleep 16254 | -2/Research | Allies destroyed B-90 Cyclops 16411 | -2/Research | Discovered new exit (range 3) 16414 | -2/Research | Identified exit to Access 16445 | -2/Research | Entered Access 16445 | -1/Access | Accompanied by 1 ally 16445 | -1/Access | Evolved 2 slots: Utility x2 16480 | -1/Access | Garrison activated, responded to threat 16578 | -1/Access | Found Fusion Bomb Launcher 16664 | -1/Access | High security lockdown imminent 16684 | -1/Access | X0-1V1 activates XOMVISION 16744 | -1/Access | High security lockdown engaged 16816 | -1/Access | Spotted Executioner 16829 | -1/Access | Allies destroyed Executioner 16847 | -1/Access | Spotted Executioner 16847 | -1/Access | Spotted Striker 16847 | -1/Access | Spotted Striker 16878 | -1/Access | Allies destroyed Striker 16880 | -1/Access | Destroyed Executioner 16880 | -1/Access | Destroyed Striker 16898 | -1/Access | Spotted Executioner 16898 | -1/Access | Spotted Striker 16898 | -1/Access | Spotted Executioner 16900 | -1/Access | Allies destroyed Executioner 16915 | -1/Access | Destroyed Executioner 16915 | -1/Access | Destroyed Investigator 16917 | -1/Access | Allies destroyed Striker 16952 | -1/Access | Lost 6 parts (3p2u1w) 16973 | -1/Access | Destroyed 21 combat bots 16981 | -1/Access | Found Prototype Launcher 16992 | -1/Access | Weapon slot count temporarily expanded by X0-1V1 (+1) 17040 | -1/Access | X0-1V1 sent you to a vault 17173 | -1/Access | Lost 4 allies 17332 | -1/Access | Spotted Striker 17353 | -1/Access | Spotted Executioner 17359 | -1/Access | Destroyed Striker 17365 | -1/Access | Weapon slot count reverted to normal (-1) 17374 | -1/Access | Lost 3 parts (2u1w) 17380 | -1/Access | Spotted Striker 17414 | -1/Access | Destroyed 7 combat bots 17414 | -1/Access | Destroyed Striker 17421 | -1/Access | Destroyed Executioner 17445 | -1/Access | Spotted Executioner 17446 | -1/Access | Spotted Striker 17447 | -1/Access | Spotted Investigator 17451 | -1/Access | Scanned by Researcher 17455 | -1/Access | Spotted Executioner 17464 | -1/Access | Spotted Executioner 17470 | -1/Access | Identified Containment Facilitator 17473 | -1/Access | Destroyed 8 combat bots 17518 | -1/Access | Destroyed Executioner 17523 | -1/Access | Lost 4 parts (1n3w) 17525 | -1/Access | Destroyed Executioner 17527 | -1/Access | Spotted Striker 17527 | -1/Access | Destroyed Striker 17529 | -1/Access | Spotted Striker 17529 | -1/Access | Spotted Striker 17537 | -1/Access | X0-1V1 sent allied Quarantine Guard (x3) 17538 | -1/Access | Allies destroyed Striker 17544 | -1/Access | X0-1V1 turns hostiles against one another 17545 | -1/Access | Destroyed Investigator 17552 | -1/Access | Destroyed 7 combat bots 17572 | -1/Access | Allies destroyed Striker 17578 | -1/Access | Allies destroyed Striker 17581 | -1/Access | Sterilization system engaged 17693 | -1/Access | Spotted Striker 17705 | -1/Access | Spotted Striker 17706 | -1/Access | Spotted Striker 17712 | -1/Access | Destroyed Striker 17714 | -1/Access | Core integrity fell below 50% 17716 | -1/Access | Destroyed Striker 17729 | -1/Access | Spotted Executioner 17729 | -1/Access | Destroyed Striker 17737 | -1/Access | Released all parts (8) 17737 | -1/Access | Spotted Executioner 17743 | -1/Access | Crushed by falling debris 17750 | -1/Access | Destroyed 20 combat bots 17765 | -1/Access | Lost 12 parts (1p3n5u3w) 17766 | -1/Access | X0-1V1 sent you into danger 17767 | -1/Access | Spotted Striker 17814 | -1/Access | Core integrity fell below 20% 17850 | -1/Access | Destroyed Striker 17881 | -1/Access | Ambient heat levels rising (+10) 17883 | -1/Access | X0-1V1 vaporized surrounding terrain (radius 19) 17907 | -1/Access | X0-1V1 redirected Transport squads to designated parking area 17937 | -1/Access | X0-1V1 whisked you away to safety 18003 | -1/Access | X0-1V1 vaporized surrounding terrain (radius 15) 18031 | -1/Access | Build established: Mutant 18031 | -1/Access | Ambient heat levels rising (+10) 18038 | -1/Access | System corruption reached 10% 18055 | -1/Access | Identified exit to Surface 18055 | -1/Access | X0-1V1 revealed exit location to -0/Surface 18105 | -1/Access | X0-1V1 destroyed Energy Cycler 18105 | -1/Access | Energy Cycler disabled 18117 | -1/Access | X0-1V1 sent hostile Guerrilla (x2) 18123 | -1/Access | Discovered new exit (range 8) 18127 | -1/Access | Entered Command 18128 | -1/Command | X0-1V1 sent you into danger 18209 | -1/Command | Destroyed by S-43 Plague with Heavy Machine Gun Last Messages --------------- 18130_ System corrupted: Heat flow error (+209). 18138_ ALERT: Hostiles spotted, dispatching reinforcements to Terminal C004. 18140_ Dropped Centrium Heavy Treads. 18140_ Acquired Adv. Heavy Siege Treads. 18151_ System corrupted: Component data lost. 18159_ Connecting with Terminal... 18159_ Current location identified: Command 18166_ System corrupted: Component data lost. 18184_ X0-1V1 ensures you are ready for glorious battle (+Centrium Greatsword). 18185_ Discarded Centrium Greatsword. 18186_ K-01 Serf cleans the TF Node. 18193_ System corrupted: Matter fused (-10). 18196_ X0-1V1 lends a hand with your twisted circuits (-10 system corruption). 18196_ X0-1V1 points here and there (32 item locations revealed). 18199_ K-01 Serf cleans the TF Node. 18209_ X0-1V1 giggles madly! Map ----- +----------------------------------------------------+ | ?????????????????????????????????????????????????? | | ?????????????????????????????????????????????????? | | ?????????????????????????????????????????????????? | | ?????????????????????????????????????????????????? | | ?????????????????????????????????????????????????? | | ?????????????????????????????????????????????????? | | ?????????????????????????????????????????????????? | | ?????????????????????????????????????????????????? | | ?????????????????????????????????????????????????? | | ?????????????????????????????????????????????????? | | ?????????????????????????????????????????????????? | | ?????????????????????????????????????????????????? | | ??????????????????##/#???????????????????????????? | | ??????????????????#ss ??????????????????????????? | | ??????????????????# s ? ????? #?????????????????? | | ?????????????????## ???? #?????????????????? | | ??????????????????/s ??? #???????????!]]???? | | ??????????????????# #???????????]]]?!?? | | ??????????????????# ! "" #???????????]]]???? | | ??????????????????# """" #?????????????????? | | ??????????????????# """" #????????????=????? | | ??????????????????# "" #???????????????]?? | | ??????????????????? #?????????????????? | | ????????????????????? ???????????????????? | | ??????????????????????? ???????######????????? | | ?????????????????########@########## ########## | | ??????????? " | | ??????????? | | ??????????? ######## ##########! #####/#### | | ???????????????????????# #????????## ## | | ???????????????????????+ #?????????# ## | | ???????????????????????# #??!!?????# ## " " | | ???????????????????????# #??!!???!?# ## "Y" | | ???????????????????????# #?????????# ## """ | | ???????????????????????# #??*??????# ## | | ???????????????????????# #?????????# ## | | ???????????????????????# #?????????# #########+# | | ???????????? ??????????# #????###+## # | | ??????????? ????????# # | | ???????????? ######## #????####### ########+## | | ?????????????? #??????????# #?????????? | | ???????????????? #?????????## #??????=??? | | ?????????????????? #????????##" #?????????? | | ???????????????????? ##########"# #?????????? | | ?????????????????????? # ## ????[???? | | ???????????????????????# # ######??????!! | | ???????????????????????# # #???????????!! | | ???????????????????????# # #????????????? | | ???????????????????????# # "" !#????????????? | | ???????????????????????# # """" #????????????? | +----------------------------------------------------+ Best States ------------- Heat Dissipation 200 Energy Generation 79 Energy Capacity 1580 Matter Stores 900 Matter Capacity 1000 Sight Range 22 Robot Scan Range 15 Terrain Scan Density 10 Jamming Range 14 Armor Coverage 3000 Resistance: KI 30 Resistance: TH 10 Core Shielding 30 Weapon Cycling 20 Evasion (%) 50 Target Analysis 15 Recoil Reduction 6 Offensive Hacking 10 Item Schematics ----------------- Imp. Arc Projector | -6/Zion | Archive Fusion Compressor | -6/Zion | Archive HERF Cannon | -6/Zion | Archive Adv. Cryofiber Web | -6/Zion | Archive Thermal Shield | -6/Zion | Archive Lrn. Proton Cannon | -6/Zion | Archive Arm. Leg | -6/Zion | Archive Imp. Plasma Cutter | -6/Zion | Archive Hvy. Flak Cannon | -6/Zion | Archive Adv. Trap Extractor | -6/Zion | Archive Lgt. Fission Core | -6/Zion | Archive Fission Core | -6/Zion | Archive Adv. Drone Bay | -6/Zion | Archive Adv. Shield Generator | -6/Zion | Archive Adv. Sensor Array | -6/Zion | Archive Robot Schematics ------------------ E-15 Imp | -6/Zion | Archive L-41 Fighter | -6/Zion | Archive Y-72 Warden | -6/Zion | Archive Fabricated ------------ Nothing Repaired ---------- Lgt. Treads | 17% | -9/Materials Rocket Launcher | 40% | -9/Materials Reflective Plating | 52% | -8/Storage Med. Reactive Plating | 12% | -6/Factory Studied --------- Lgt. Treads | -9/Materials | Hacked Arm. Wheel | -9/Materials | Hacked Alien Tech Used ----------------- None Achievements -------------- Greater Chaos Challenges ------------ None Game ------ Seed RainbowTitaniumDerivative Manual? 0 Play Time 02:15:22 Cumulative 2292.6 hours Start 2026.08.22 @ 17:51:49 End 2026.08.22 @ 20:43:29 Sessions 3 Manual Loads 0 Difficulty Rogue Special Mode None Game No. 1434 Rogue 1430 Adventurer 4 Explorer 0 Win Type - Total 332 Types 249/14/27/11/4/1/6/10/6/4 Lore% 98 Gallery% 95 Achievement% 94 Wizard Run 0 Options --------- Layout 2 ASCII 0 Keyboard 1 Movement Vi Keybinds 0 Fullscreen 0 Font 24/Terminus Map View 59x48 Zoom Use 0% Tactical HUD 1 Map Filters NONE Filters NONE Steam 1 RUN: 3ccfd0fc-b92d-41fe-9d76-bf64c32602cb